Cogmind - Beta 14 *** ADVENTURER MODE // 2024.11.18 @ 23:39:22 Player: Takao Tuesday Result: Self-destructed Performance ------------- Evolutions (1) 500 Regions Visited (2) 400 Robots Destroyed (18) 90 Value Destroyed (492) 492 Prototype IDs (0) 0 Alien Tech Used (0) 0 Bonus (0) 0 TOTAL SCORE: 1482 Bonus ------- None Cogmind --------- Core Integrity 253/400 Matter 234/300 Energy 58/100 System Corruption 0% Temperature Cool (39) Movement Rolling (130) Ox2 Location -9/Materials Parts ------- > --- POWER (1) -------- (None) > --- PROPULSION (2) --- Compact Wheel > --- UTILITY (4) ------ High-capacity Storage Unit Sensor Array Signal Interpreter > --- WEAPON (2) ------- Assault Rifle > --- INVENTORY (20) --- Ion Engine Armored Treads Armored Treads Wheel Wheel Compact Wheel Heat Sink High-capacity Storage Unit High-capacity Storage Unit Signal Interpreter Terrain Scanner Terrain Scan Processor EM Pulse Cannon Beam Cannon Improved Datajack Peak State ------------ > --- POWER ------------ Light Nuclear Core > --- PROPULSION ------- Wheel Compact Wheel > --- UTILITY ---------- Improved Heat Sink High-capacity Storage Unit Sensor Array Signal Interpreter > --- WEAPON ----------- EM Pulse Cannon EM Pulse Cannon > --- INVENTORY -------- Ion Engine Wheel Wheel Compact Wheel Heat Sink High-capacity Storage Unit High-capacity Storage Unit Signal Interpreter Terrain Scanner Terrain Scan Processor EM Pulse Gun EM Pulse Cannon EM Pulse Cannon Beam Cannon Assault Rifle Improved Datajack [Rating: 19] Favorites ----------- Power Ion Engine Engine Ion Engine Power Core Light Nuclear Core Propulsion Wheel Wheel Wheel Utility High-capacity Storage Unit Device Heat Sink Storage High-capacity Storage Unit Processor Signal Interpreter Weapon EM Pulse Gun Energy Gun EM Pulse Gun Energy Cannon Beam Cannon Ballistic Gun Assault Rifle Build | -11 -10 -9 ------- Run | Yrd Mat Mat Slots Evolved 2 | . . 2 Power . | . . . Propulsion . | . . . Utility 2 | . . 2 Weapon . | . . . Parts Attached 27 | 3 18 6 Power 3 | 1 2 . Engine 2 | 1 1 . Core 1 | . 1 . Reactor . | . . . Propulsion 7 | . 7 . Treads . | . . . Leg . | . . . Wheel 7 | . 7 . Hover . | . . . Flight . | . . . Utility 7 | . 5 2 Device 3 | . 2 1 Storage 3 | . 3 . Processor 1 | . . 1 Hackware . | . . . Protection . | . . . Artifact . | . . . Weapon 10 | 2 4 4 Energy Gun 3 | 1 2 . Energy Cannon 4 | . 1 3 Ballistic Gun 3 | 1 1 1 Ballistic Cannon . | . . . Launcher . | . . . Special Weapon . | . . . Impact Weapon . | . . . Slashing Weapon . | . . . Piercing Weapon . | . . . Special Melee Weapon . | . . . Unidentified Prototypes . | . . . Parts Lost 7 | . 2 5 Power 2 | . 1 1 Propulsion 2 | . 1 1 Utility 1 | . . 1 Weapon 2 | . . 2 Highest Loss Streak 5 | . 2 5 To Critical Strikes . | . . . Average Slot Usage (%) 95 | . 95 98 Engine 8 | . 9 . Core 4 | . 3 11 Wheel 25 | . 26 21 Device 13 | . 11 22 Storage 13 | . 14 11 Processor 1 | . . 11 Energy Gun 11 | . 13 1 Energy Cannon 11 | . 10 18 Ballistic Gun 3 | . 3 1 Peak Build Rating 19 | 3 12 19 Average Rating 9 | 2 7 17 On Entrance 5 | . 3 12 Naked Turns . | . . . Heaviest Build 59 | 9 51 59 Greatest Support 26 | 3 26 26 Greatest Overweight (x) 4 | 2 4 2 Average Overweight (x) 1 | 1 1 1 Largest Inventory Capacity 20 | 5 20 20 Average Capacity 16 | 5 16 20 Most Carried 17 | 4 13 17 Average Carried 9 | 3 8 16 Final Capacity 20 | 5 20 20 Final Carried 15 | 4 13 15 Class Distribution -------------------- 86% | Mutant 13% | Scavenger-Mutant Dominant Class ---------------- Mutant | -10/Materials Scavenger-Mutant | -9/Materials Resources | -11 -10 -9 ----------- Run | Yrd Mat Mat Matter Collected 462 | 198 264 . Remotely . | . . . Salvage Created 679 | . 562 117 Parts 37 | . 34 3 Haulers Intercepted . | . . . Recyclers Shooed . | . . . Parts Field Recycled . | . . . Retrieved Matter . | . . . Parts Self-Destructed . | . . . Prevented . | . . . Kills | -11 -10 -9 ------- Run | Yrd Mat Mat Combat Hostiles Destroyed 13 | . 11 2 Guns 7 | . 7 . Cannons 3 | . 1 2 AOE 2 | . 2 . Classes Destroyed 6 | . 4 2 Recycler 1 | . 1 . Operator 1 | . . 1 Watcher 3 | . 3 . Swarmer 3 | . 3 . Grunt 9 | . 8 1 Duelist 1 | . . 1 Best Kill Streak 3 | . 3 1 Combat Bots Only 3 | . 3 1 Max Kills in Single Turn 1 | . 1 1 Gunslinging . | . . . Exploded 1 | . 1 . Melee . | . . . Uniques/NPCs Destroyed . | . . . Combat | -11 -10 -9 -------- Run | Yrd Mat Mat Hostile Shots Fired 143 | . 65 78 Missed 47 | . 23 24 Damage Taken 962 | . 406 556 Core 273 | . 126 147 Absorbed by Shields . | . . . Ignored by Resistances 291 | . 128 163 Core Remaining (%) 74 | 100 49 . Volleys Fired 58 | . 42 16 Largest 2 | . 2 2 Hottest 126 | . 100 126 Shots Fired 110 | . 84 26 Gun 73 | . 66 7 Cannon 37 | . 18 19 Launcher . | . . . Special . | . . . Kinetic 31 | . 24 7 Thermal 18 | . 18 . Explosive . | . . . Electromagnetic 61 | . 42 19 Robot Hit Streak 25 | . 25 16 Robot Miss Streak 3 | . 2 3 Penetration Max . | . . . Secondary Targets . | . . . Shots Hit Robots 84 | . 63 21 Core Hits 29 | . 23 6 Critical Kills . | . . . Critical Parts Destroyed . | . . . Critical Strikes 2 | . 2 . Corrupt 2 | . 2 . Melee Attacks . | . . . Impact . | . . . Slashing . | . . . Piercing . | . . . Sneak Attacks . | . . . Combat Hostiles . | . . . Follow-up Attacks . | . . . Damage Inflicted 1560 | . 1113 447 Guns 777 | . 702 75 Cannons 584 | . 212 372 Explosions 199 | . 199 . Melee . | . . . Ramming . | . . . Kinetic 295 | . 220 75 Thermal 411 | . 411 . Explosive . | . . . Electromagnetic 854 | . 482 372 Impact . | . . . Slashing . | . . . Piercing . | . . . Highest Corruption . | . . . Average Corruption . | . . . Corruption Purged . | . . . Corruption Blocked . | . . . Overload Shots . | . . . Overflow Damage 1 | . . 1 Projectiles 1 | . . 1 Explosions . | . . . Melee . | . . . Knockbacks . | . . . Impact . | . . . Kinetic . | . . . Secondary . | . . . Self-Inflicted Damage . | . . . Shots . | . . . Rammed . | . . . Targets Rammed . | . . . Kicked . | . . . Crushed . | . . . Highest Temperature 80 | . 80 48 Average Temperature 32 | . 37 16 Received Heat Transfer 585 | . 246 339 Siege Activations . | . . . Robots Corrupted 1 | . 1 . Combat Hostiles 1 | . 1 . Parts Fried 5 | . . 5 Impact Corruptions . | . . . Robots Melted . | . . . Combat Hostiles . | . . . Parts Melted . | . . . Heat Transferred 794 | . 794 . Parts Sabotaged . | . . . Parts Stolen . | . . . Parts Stripped . | . . . Power Chain Reactions 4 | . 4 . Alert | -11 -10 -9 ------- Run | Yrd Mat Mat Peak Influence 203 | . 203 50 Initial . | . . . Average 73 | . 90 11 Maximum Alert Level 1 | . 1 . Low Security (%) 94 | 100 93 100 Level 1 5 | . 6 . Level 2 . | . . . Level 3 . | . . . Level 4 . | . . . Level 5 . | . . . High Security . | . . . Max Security . | . . . Squads Dispatched . | . . . Investigation . | . . . Extermination . | . . . Reinforcement . | . . . Assault . | . . . Garrison . | . . . Intercept . | . . . Searches Triggered . | . . . Construction Impeded . | . . . Haulers Reinforced . | . . . Active Scanning Responses . | . . . Cargo Convoy Interrupts . | . . . Stealth | -11 -10 -9 --------- Run | Yrd Mat Mat Distress Signals . | . . . Communications Jammed . | . . . Distress Signals . | . . . Times Spotted 22 | . 16 6 Peak Tracking Total 6 | . 2 6 Tactical Retreats 1 | . 1 . Traps | -11 -10 -9 ------- Run | Yrd Mat Mat Traps Triggered 4 | . 4 . Indirectly . | . . . Trap Hack Attempts . | . . . Triggered . | . . . Disarmed . | . . . Reprogrammed . | . . . Reused . | . . . Traps Extracted . | . . . Installed . | . . . Triggered . | . . . Machines | -11 -10 -9 ---------- Run | Yrd Mat Mat Machines Disabled . | . . . Max in Single Turn . | . . . Machines Repaired . | . . . Machines Dismantled . | . . . Machines Sabotaged . | . . . Overloaded Fab Kills . | . . . Hacking | -11 -10 -9 --------- Run | Yrd Mat Mat Machines Accessed 3 | . 3 . Terminals 2 | . 2 . Fabricators . | . . . Repair Stations . | . . . Recycling Units 1 | . 1 . Scanalyzers . | . . . Garrison Access . | . . . Total Hacks 5 | . 5 . Successful 4 | . 4 . Failed 1 | . 1 . Catastrophic . | . . . Database Lockouts . | . . . Manual . | . . . Terminals 3 | . 3 . Fabricators . | . . . Repair Stations . | . . . Recycling Units 2 | . 2 . Scanalyzers . | . . . Garrison Access . | . . . Terminal Hacks 2 | . 2 . Record 1 | . 1 . Locate Traps 1 | . 1 . Fabricator Hacks . | . . . Repair Station Hacks . | . . . Recycling Unit Hacks 2 | . 2 . Retrieve Matter 1 | . 1 . Retrieve Components 1 | . 1 . Scanalyzer . | . . . Garrison Access Hacks . | . . . Unauthorized Hacks . | . . . Terminals . | . . . Fabricators . | . . . Repair Stations . | . . . Recycling Units . | . . . Scanalyzers . | . . . Garrison Access . | . . . Data Cores Recovered . | . . . Used . | . . . Hacking Detections 1 | . 1 . Full Trace Events . | . . . Feedback Events . | . . . Feedback Blocked . | . . . Robot Schematics Acquired . | . . . Robots Built . | . . . Authchips . | . . . Time . | . . . Total Robot Build Rating . | . . . Part Schematics Acquired . | . . . Parts Built . | . . . Authchips . | . . . Time . | . . . Total Part Build Rating . | . . . Parts Repaired . | . . . Time . | . . . Parts Recycled . | . . . Recycled Matter . | . . . Retrieved Matter . | . . . Retrieved Components 1 | . 1 . Parts Scanalyzed . | . . . Part Schematics Acquired . | . . . Parts Damaged . | . . . Bothacking | -11 -10 -9 ------------ Run | Yrd Mat Mat Used RIF Installer . | . . . Robots Hacked . | . . . Non-combat . | . . . Combat . | . . . Robot Hacks Applied . | . . . Relay Couplers Released . | . . . Fabnet Peak Effective % . | . . . Robots Rewired . | . . . Allies Hacked . | . . . Hacks Repelled . | . . . Allies | -11 -10 -9 -------- Run | Yrd Mat Mat Total Allies . | . . . Largest Group . | . . . Highest-Rated Group . | . . . Highest-Rated Ally . | . . . Total Orders . | . . . Ally Attacks . | . . . Total Damage . | . . . Kills . | . . . Allies Corrupted . | . . . Allies Melted . | . . . Intel | -11 -10 -9 ------- Run | Yrd Mat Mat Robot Analysis Total . | . . . Derelict Logs Recovered . | . . . Drone Launches . | . . . Drone Recoveries . | . . . Exploration | -11 -10 -9 ------------- Run | Yrd Mat Mat Turns Passed 1087 | 52 862 173 Spaces Moved 747 | 34 616 97 Core 44 | 34 10 . Treads . | . . . Legs . | . . . Wheels 703 | . 606 97 Hover . | . . . Flight . | . . . Fastest Speed 50 | 50 90 105 Average Speed 106 | 123 103 118 Slowest Speed 150 | 150 140 120 Overloaded Moves . | . . . Propulsion Burnouts . | . . . Robots Hopped . | . . . Cave-ins Triggered . | . . . Exploration Rate (%) 37 | 3 98 10 Regions Visited 2 Branch Regions . Pre-discovered Areas . | . . . Known Exits Taken . | . . . Unknown Exits Taken 2 | 1 1 . Scrap Searched . | . . . Spaces Dug . | . . . Terrain Destroyed 18 | . 18 . Melee . | . . . Projectile . | . . . AOE 18 | . 18 . Terrain Rammed . | . . . Walls Destroyed . | . . . Machines Disabled . | . . . Actions | -11 -10 -9 --------- Run | Yrd Mat Mat Total 924 | 42 754 128 Wait 64 | 2 61 1 Move 745 | 33 615 97 Hop . | . . . Pick Up 21 | 4 10 7 Fast Attach 6 | 3 3 . Attach 13 | . 9 4 Detach 5 | . 5 . Swap 8 | . 6 2 Drop 4 | . 3 1 Fire 58 | . 42 16 Melee . | . . . Ram . | . . . Kick . | . . . Crush . | . . . Escape Stasis . | . . . Rewire . | . . . Trap . | . . . Miscellaneous . | . . . Route ------- -11/Scrapyard -10/Materials (discovered 5 exits: *Mat x3 / [*Min] / [*Sub]) -9/Materials History --------- Turn | Location | Event 6 | -11/Scrapyard | Discovered new exit (range 16) 53 | -11/Scrapyard | Entered Materials 73 | -10/Materials | Discovered new exit (range 16) 262 | -10/Materials | Discovered new exit (range 10) 300 | -10/Materials | Build established: Mutant 565 | -10/Materials | Discovered new exit (range 12) 610 | -10/Materials | Discovered new exit (range 6) 678 | -10/Materials | Core integrity fell below 50% 764 | -10/Materials | Discovered new exit (range 6) 915 | -10/Materials | Entered another Materials area 915 | -9/Materials | Evolved 2 slots: Utility x2 1088 | -9/Materials | Self-destructed Last Messages --------------- TERMINAL." Lgt. Ion Engine fried. Datajack fried. Hacking Suite fried. O-16 Technician destroyed. Critical hit (Burn: +37). EM Pulse Cannon severed. Melee Analysis Suite fried. L-31 Rogue destroyed. R-06 Scavenger collects EM Pulse Cannon. R-06 Scavenger collects Corrupted Katana. EM Pulse Cannon destroyed. Wheel destroyed. M-13 Machinist repairs Y-45 Defender. M-13 Machinist repairs Heat Sink. Heat Sink fried. G-34 Mercenary destroyed. Lgt. Nuclear Core destroyed. Imp. Heat Sink destroyed. EM Pulse Cannon destroyed. Map ----- +----------------------------------------------------+ | ?????????????????????????????????????????????????? | | ?????????????????????????????????????????????????? | | ?????????????????????????????????????????????????? | | ?????????????????????????????????????????????????? | | ?????????????????????????????????????????????????? | | ?????????????????????????????????????????????????? | | ?????????????????????????????????????????????????? | | ?????????????????????????????????????????????????? | | ?????????????????????????????????????????????????? | | ?????????????????????????????????????????????????? | | ?????????????????????????????????????????????????? | | ????????? ???????????????????????????????????????? | | ?????????"""???????????#####?????????????????????? | | ????????""""???????????# #?????????????????????? | | ????????? ""???????????# #?????????????????????? | | ????????? ???????????# #?????????????????????? | | ???????###+######??????# #?????????????????????? | | ?##????# #??????# #?????????????????????? | | ##!!???# #??????# #?????????????????????? | | #! ??# +??????# #?????????????????????? | | # %$ ?# #?????###+######################## | | # # ####### | | t% | | [ | | g m ############## ## | | #####+#### Yr @ #????????????# #? | | ?????????# """" ###????????????# /#? | | ?????????+ """" #??????????????#[ ==//#? | | ?????????#####+## """"g%%########???????########? | | ???????????? ?# g # #???????????????? | | ??????????? ??# # T #???????????????? | | ??????????# ??# + #???????????????? | | ??????????# ???# ##### #???????????????? | | ??????????# ???# #???# #???????????????? | | ??????????# ????#######???# #???????????????? | | ??????????##??????????????########???????????????? | | | | | | | | | | | | | | | | | | | | | | | | | | | | | +----------------------------------------------------+ Best States ------------- Heat Dissipation 42 Energy Generation 14 Energy Capacity 250 Matter Stores 300 Matter Capacity 300 Sight Range 16 Robot Scan Range 14 Terrain Scan Density 10 Resistance: KI 20 Resistance: TH 20 Resistance: EX 20 Resistance: EM 20 Resistance: I 20 Resistance: S 20 Resistance: P 20 Evasion (%) 42 Offensive Hacking 10 Item Schematics ----------------- None Robot Schematics ------------------ None Fabricated ------------ Nothing Alien Tech Used ----------------- None Achievements -------------- None Challenges ------------ None Game ------ Seed TachyonThermicOptics Manual? 0 Play Time 00:13:04 Cumulative 15.0 hours Start 2024.11.18 @ 23:28:46 End 2024.11.18 @ 23:39:22 Sessions 1 Manual Loads 0 Difficulty Adventurer Special Mode None Game No. 23 Rogue 3 Adventurer 8 Explorer 12 Win Type - Total 0 Types 0/0/0/0/0/0/0/0/0 Lore% 5 Gallery% 19 Achievement% 17 Wizard Run 0 Options --------- Layout 1 ASCII 0 Keyboard 0 Movement Mouse Keybinds 0 Fullscreen 1 Font 24/Smallcaps Map View 50x35 Zoom Use 0% Tactical HUD 0 Map Filters NONE Filters NONE Steam 1 RUN: 4bfe4c5a-02a3-483d-b272-18dc33eb6f41